fUST/lending_fUST_20240227
["ID","MTS","AMOUNT","RATE_DAILY","PERIOD"]
[315359616,1708989041328,-1849.52,0.00019178,2]
[315359618,1708989041337,-500.0,0.00019178,2]
[315359620,1708989041346,-500.0,0.00019178,2]
[315359622,1708989041359,-500.0,0.00019178,2]
[315359624,1708989041368,-500.0,0.00019178,2]
[315359626,1708989041377,-500.0,0.00019178,2]
[315359628,1708989041387,-500.0,0.00019178,2]
[315359630,1708989041395,-500.0,0.00019178,2]
[315359632,1708989041405,-500.0,0.00019178,2]
[315359634,1708989041415,-17115.04,0.00019178,2]
[315359636,1708989041424,-500.0,0.00019178,2]
[315359638,1708989041434,-500.0,0.00019178,2]
[315359640,1708989041444,-500.60959108,0.00019178,2]
[315359642,1708989041453,-500.0,0.00019178,2]
[315359644,1708989041462,-907.39,0.00019178,2]
[315359646,1708989041471,-500.0,0.00019178,2]
[315359648,1708989041480,-502.47764759,0.00019178,2]
[315359650,1708989041489,-500.0,0.00019178,2]
[315359652,1708989041498,-500.0,0.00019178,2]
[315359654,1708989041507,-513.67629886,0.00019178,2]
[315359656,1708989041516,-500.91970631,0.00019178,2]
[315359658,1708989041525,-521.26886401,0.00019178,2]
[315359669,1708989041534,-500.0,0.00019178,2]
[315359671,1708989041631,-527.74951966,0.00019178,2]
[315359673,1708989041640,-500.0,0.00019178,2]
[315359675,1708989041649,-2018.18,0.00019178,2]
[315359677,1708989041659,-500.0,0.00019178,2]
[315359679,1708989041668,-503.11301008,0.00019178,2]
[315359681,1708989041677,-500.0,0.00019178,2]
[315359683,1708989041687,-1573.46,0.00019178,2]
[315359685,1708989041696,-17851.83,0.00019178,2]
[315359687,1708989041705,-949.56,0.00019178,2]
[315359689,1708989041714,-500.0,0.00019178,2]
[315359691,1708989041723,-481.7489262,0.00019178,2]
[315359693,1708989041731,-500.0,0.00019178,2]
[315359695,1708989041740,-500.0,0.00019178,2]
[315359697,1708989041750,-500.0,0.00019178,2]
[315359699,1708989041759,-500.0,0.00019178,2]
[315359701,1708989041768,-500.0,0.00019178,2]
[315359703,1708989041777,-7320.56,0.00019178,2]
[315359705,1708989041785,-569.23170504,0.00019178,2]
[315359707,1708989041795,-500.0,0.00019178,2]
[315359709,1708989041804,-500.0,0.00019178,2]
[315359711,1708989041813,-1206.9,0.00019178,2]
[315359713,1708989041822,-3358.79,0.00019178,2]
[315359715,1708989041831,-1000.0,0.00019178,2]
[315359717,1708989041840,-268.97832651,0.00019178,2]
[315359719,1708989041849,-500.0,0.00019178,2]
[315359721,1708989041858,-500.0,0.00019178,2]
[315359723,1708989041867,-500.0,0.00019178,2]
[315359725,1708989041879,-500.0,0.00019178,2]
[315359727,1708989041888,-500.0,0.00019178,2]
[315359728,1708989041897,-500.0,0.00019178,2]
[315359731,1708989041907,-522.16106929,0.00019178,2]
[315359733,1708989041918,-659.55,0.00019178,2]
[315359735,1708989041927,-500.0,0.00019178,2]
[315359737,1708989041936,-667.3,0.00019178,2]
[315359739,1708989041945,-500.0,0.00019178,2]
[315359741,1708989041955,-500.0,0.00019178,2]
[315359743,1708989041965,-500.0,0.00019178,2]
[315359745,1708989041975,-500.0,0.00019178,2]
[315359747,1708989041984,-2609.44,0.00019178,2]
[315359749,1708989041995,-1701.35,0.00019178,2]
[315359751,1708989042004,-500.0,0.00019178,2]
[315359753,1708989042012,-500.0,0.00019178,2]
[315359755,1708989042021,-500.0,0.00019178,2]
[315359757,1708989042030,-500.0,0.00019178,2]
[315359759,1708989042039,-500.0,0.00019178,2]
[315359761,1708989042049,-500.0,0.00019178,2]
[315359763,1708989042058,-500.0,0.00019178,2]
[315359765,1708989042067,-500.0,0.00019178,2]
[315359767,1708989042077,-500.0,0.00019178,2]
[315359769,1708989042086,-2076.84,0.00019178,2]
[315359771,1708989042095,-500.0,0.00019178,2]
[315359773,1708989042104,-500.0,0.00019178,2]
[315359775,1708989042114,-500.0,0.00019178,2]
[315359777,1708989042123,-3588.08,0.00019178,2]
[315359779,1708989042133,-500.0,0.00019178,2]
[315359781,1708989042143,-2067.98,0.00019178,2]
[315359783,1708989042152,-500.0,0.00019178,2]
[315359785,1708989042162,-500.0,0.00019178,2]
[315359787,1708989042173,-515.24992095,0.00019178,2]
[315359789,1708989042182,-500.0,0.00019178,2]
[315359791,1708989042193,-618.09332603,0.00019178,2]
[315359793,1708989042203,-167.41212,0.00019178,2]
[315359795,1708989042213,-168.810606,0.00019178,2]
[315359797,1708989042222,-166.666666,0.00019178,2]
[315359799,1708989042231,-359.94840108,0.00019446,2]
[315359801,1708989042241,-823.9,0.00019451,2]
[315359803,1708989042251,-823.9,0.00019451,2]
[315359805,1708989042260,-823.9,0.00019451,2]
[315359807,1708989042270,-823.9,0.00019451,2]
[315359809,1708989042279,-823.9,0.00019451,2]
[315359811,1708989042288,-500.0,0.00019452,2]
[315359813,1708989042297,-500.0,0.00019452,2]
[315359815,1708989042307,-298.70806404,0.00019452,2]
[315359817,1708989042315,-305.83280235,0.00019452,2]
[315359819,1708989042324,-629.55043623,0.00019452,2]
[315359821,1708989042333,-571.63134775,0.00019452,2]
[315359823,1708989042342,-587.24,0.00019452,2]
[315359825,1708989042351,-500.0,0.00019452,2]
[315359827,1708989042360,-500.0,0.00019452,2]
[315359829,1708989042369,-500.0,0.00019452,2]
[315359831,1708989042378,-500.0,0.00019452,2]
[315359833,1708989042387,-500.0,0.00019452,2]
[315359835,1708989042395,-502.00218481,0.00019452,2]
[315359837,1708989042404,-500.0,0.00019452,2]
[315359839,1708989042414,-500.0,0.00019452,2]
[315359841,1708989042422,-1191.18,0.00019452,2]
[315359843,1708989042431,-500.0,0.00019452,2]
[315359845,1708989042441,-500.0,0.00019452,2]
[315359846,1708989042450,-500.0,0.00019452,2]
[315359849,1708989042460,-500.0,0.00019452,2]
[315359851,1708989042469,-500.0,0.00019452,2]
[315359852,1708989042477,-500.0,0.00019452,2]
[315359854,1708989042487,-376.01926502,0.00019452,2]
[315359856,1708989042496,-2739.11,0.00019452,2]
[315359858,1708989042505,-376.53441205,0.00019452,2]
[315359860,1708989042515,-500.0,0.00019452,2]
[315359862,1708989042524,-529.94195677,0.00019452,2]
[315359865,1708989042534,-500.0,0.00019452,2]
[315359867,1708989042543,-501.10864592,0.00019452,2]
[315359869,1708989042552,-500.0,0.00019452,2]
[315359871,1708989042561,-500.0,0.00019452,2]
[315359873,1708989042570,-500.0,0.00019452,2]
[315359874,1708989042578,-500.0,0.00019452,2]
[315359876,1708989042587,-500.0,0.00019452,2]
[315359878,1708989042596,-405.80118565,0.00019452,2]
[315359880,1708989042605,-500.0,0.00019452,2]
[315359883,1708989042615,-500.0,0.00019452,2]
[315359884,1708989042624,-500.0,0.00019452,2]
[315359886,1708989042633,-500.0,0.00019452,2]
[315359889,1708989042643,-1000.0,0.00019452,2]
[315359891,1708989042652,-500.0,0.00019452,2]
[315359892,1708989042662,-721.4,0.00019452,2]
[315359895,1708989042672,-500.0,0.00019452,2]
[315359896,1708989042681,-1331.54,0.00019452,2]
[315359898,1708989042690,-501.23926151,0.00019452,2]
[315359900,1708989042699,-500.0,0.00019452,2]
[315359903,1708989042708,-501.25122817,0.00019452,2]
[315359905,1708989042718,-500.0,0.00019452,2]
[315359907,1708989042727,-500.0,0.00019452,2]
[315359908,1708989042736,-500.0,0.00019452,2]
[315359910,1708989042745,-500.0,0.00019452,2]
[315359912,1708989042754,-306.73743767,0.00019452,2]
[315359915,1708989042764,-500.0,0.00019452,2]
[315359916,1708989042773,-576.01,0.00019452,2]
[315359918,1708989042782,-417.97011128,0.00019452,2]
[315359920,1708989042791,-500.0,0.00019452,2]
[315359923,1708989042801,-500.0,0.00019452,2]
[315359924,1708989042810,-500.0,0.00019452,2]
[315359927,1708989042819,-418.52836242,0.00019452,2]
[315359929,1708989042828,-500.0,0.00019452,2]
[315359931,1708989042838,-500.0,0.00019452,2]
[315359933,1708989042847,-497.00174819,0.00019452,2]
[315359934,1708989042855,-500.0,0.00019452,2]
[315359937,1708989042865,-500.0,0.00019452,2]
[315359939,1708989042876,-500.0,0.00019452,2]
[315359941,1708989042886,-500.0,0.00019452,2]
[315359943,1708989042896,-500.0,0.00019452,2]
[315359947,1708989042906,-500.0,0.00019452,2]
[315359949,1708989042917,-500.0,0.00019452,2]
[315359951,1708989042927,-500.0,0.00019452,2]
[315359955,1708989042936,-500.0,0.00019452,2]
[315359956,1708989042946,-500.0,0.00019452,2]
[315359959,1708989042957,-500.0,0.00019452,2]
[315359963,1708989042967,-500.0,0.00019452,2]
[315359964,1708989042977,-500.0,0.00019452,2]
[315359967,1708989042986,-500.0,0.00019452,2]
[315359970,1708989042995,-262.021544,0.00019452,2]
[315359972,1708989043005,-500.0,0.00019452,2]
[315359974,1708989043015,-500.0,0.00019452,2]
[315359976,1708989043024,-500.0,0.00019452,2]
[315359978,1708989043033,-500.0,0.00019452,2]
[315359980,1708989043042,-500.0,0.00019452,2]
[315359982,1708989043052,-436.38596595,0.00019452,2]
[315359984,1708989043061,-500.0,0.00019452,2]
[315359987,1708989043070,-500.829993,0.00019452,2]
[315359989,1708989043079,-501.0634752,0.00019452,2]
[315359991,1708989043088,-500.0,0.00019452,2]
[315359992,1708989043097,-3169.63,0.00019452,2]
[315359995,1708989043106,-500.0,0.00019452,2]
[315359996,1708989043115,-1625.24,0.00019452,2]
[315359998,1708989043124,-500.0,0.00019452,2]
[315360001,1708989043134,-1421.48,0.00019452,2]
[315360002,1708989043143,-500.0,0.00019452,2]
[315360005,1708989043152,-470.0,0.00019452,2]
[315360007,1708989043162,-1987.99,0.00019452,2]
[315360009,1708989043171,-500.0,0.00019452,2]
[315360011,1708989043181,-500.0,0.00019452,2]
[315360013,1708989043190,-500.0,0.00019452,2]
[315360014,1708989043199,-500.0,0.00019452,2]
[315360016,1708989043208,-329.06892386,0.00019452,2]
[315360019,1708989043217,-500.0,0.00019452,2]
[315360021,1708989043226,-500.0,0.00019452,2]
[315360022,1708989043235,-229.23019617,0.00019452,2]
[315360025,1708989043245,-1894.86,0.00019452,2]
[315360027,1708989043254,-500.0,0.00019452,2]
[315360029,1708989043271,-500.0,0.00019452,2]
[315360032,1708989043284,-1300.41,0.00019452,2]
[315360034,1708989043293,-2560.44,0.00019452,2]
[315360036,1708989043302,-612.23784616,0.00019452,2]
[315360038,1708989043312,-500.0,0.00019452,2]
[315360040,1708989043321,-500.0,0.00019452,2]
[315360042,1708989043331,-500.0,0.00019452,2]
[315360044,1708989043340,-500.0,0.00019452,2]
[315360046,1708989043350,-500.0,0.00019452,2]
[315360048,1708989043359,-500.0,0.00019452,2]
[315360050,1708989043370,-500.0,0.00019452,2]
[315360052,1708989043379,-500.0,0.00019452,2]
[315360054,1708989043388,-500.0,0.00019452,2]
[315360055,1708989043400,-500.0,0.00019452,2]
[315360056,1708989043410,-500.0,0.00019452,2]
[315360057,1708989043420,-500.0,0.00019452,2]
[315360058,1708989043430,-500.0,0.00019452,2]
[315360059,1708989043439,-10695.9,0.00019452,2]
[315360060,1708989043448,-500.0,0.00019452,2]
[315360061,1708989043458,-501.85263397,0.00019452,2]
[315360062,1708989043467,-500.0,0.00019452,2]
[315360063,1708989043477,-595.11,0.00019452,2]
[315360064,1708989043487,-865.79,0.00019452,2]
[315360065,1708989043496,-500.0,0.00019452,2]
[315360066,1708989043506,-1431.7,0.00019452,2]
[315360067,1708989043515,-500.0,0.00019452,2]
[315360068,1708989043524,-3446.49,0.00019452,2]
[315360069,1708989043534,-1849.52,0.00019452,2]
[315360070,1708989043543,-500.35866528,0.00019452,2]
[315360071,1708989043554,-500.0,0.00019452,2]
[315360072,1708989043564,-500.0,0.00019452,2]
[315360073,1708989043574,-500.0,0.00019452,2]
[315360074,1708989043583,-500.0,0.00019452,2]
[315360075,1708989043593,-509.02416271,0.00019452,2]
[315360076,1708989043602,-500.0,0.00019452,2]
[315360077,1708989043612,-17115.04,0.00019452,2]
[315360079,1708989043621,-500.0,0.00019452,2]
[315360081,1708989043631,-500.0,0.00019452,2]
[315360084,1708989043640,-500.0,0.00019452,2]
[315360086,1708989043649,-907.39,0.00019452,2]
[315360088,1708989043658,-500.0,0.00019452,2]
[315360090,1708989043668,-500.0,0.00019452,2]
[315360092,1708989043678,-500.0,0.00019452,2]
[315360094,1708989043687,-500.0,0.00019452,2]
[315360096,1708989043696,-500.0,0.00019452,2]
[315360098,1708989043706,-2018.18,0.00019452,2]
[315360100,1708989043715,-500.0,0.00019452,2]
[315360102,1708989043724,-1573.46,0.00019452,2]
[315360104,1708989043733,-17851.83,0.00019452,2]
[315360106,1708989043742,-949.56,0.00019452,2]
[315360108,1708989043751,-500.0,0.00019452,2]
[315360110,1708989043761,-500.0,0.00019452,2]
[315360112,1708989043770,-500.0,0.00019452,2]
[315360114,1708989043780,-500.0,0.00019452,2]
[315360116,1708989043789,-500.0,0.00019452,2]
[315360130,1708989043905,-7320.56,0.00019452,2]
[315360132,1708989043923,-500.0,0.00019452,2]
[315360134,1708989043932,-500.0,0.00019452,2]
[315360136,1708989043942,-1206.9,0.00019452,2]
[315360138,1708989043951,-3358.79,0.00019452,2]
[315360140,1708989043961,-1000.0,0.00019452,2]
[315360142,1708989043972,-500.0,0.00019452,2]
[315360144,1708989043981,-500.0,0.00019452,2]
[315360146,1708989043990,-500.0,0.00019452,2]
[315360148,1708989043999,-500.0,0.00019452,2]
[315360150,1708989044008,-659.55,0.00019452,2]
[315360152,1708989044018,-500.0,0.00019452,2]
[315360154,1708989044026,-667.3,0.00019452,2]
[315360156,1708989044035,-500.0,0.00019452,2]
[315360158,1708989044046,-500.0,0.00019452,2]
[315360160,1708989044055,-501.52534223,0.00019452,2]
[315360162,1708989044065,-500.0,0.00019452,2]
[315360164,1708989044074,-2609.44,0.00019452,2]
[315360166,1708989044083,-1701.35,0.00019452,2]
[315360168,1708989044092,-536.17501023,0.00019452,2]
[315360170,1708989044102,-500.0,0.00019452,2]
[315360172,1708989044110,-500.0,0.00019452,2]
[315360174,1708989044119,-500.0,0.00019452,2]
[315360176,1708989044128,-500.0,0.00019452,2]
[315360178,1708989044137,-500.0,0.00019452,2]
[315360180,1708989044146,-502.11470017,0.00019452,2]
[315360182,1708989044155,-500.0,0.00019452,2]
[315360184,1708989044170,-2076.84,0.00019452,2]
[315360186,1708989044179,-500.0,0.00019452,2]
[315360188,1708989044188,-500.0,0.00019452,2]
[315360190,1708989044198,-3588.08,0.00019452,2]
[315360193,1708989044208,-2067.98,0.00019452,2]
[315360194,1708989044217,-2463.51589491,0.00019626,2]
[315360197,1708989044226,-166.666666,0.00019627,2]
[315360198,1708989044235,-243.58118859,0.00019725,2]
[315360200,1708989044245,-256.44210122,0.00019725,2]
[315360203,1708989044255,-823.9,0.00019725,2]
[315360205,1708989044264,-823.9,0.00019725,2]
[315360207,1708989044273,-823.9,0.00019725,2]
[315360209,1708989044282,-823.9,0.00019725,2]
[315360211,1708989044291,-500.0,0.00019725,2]
[315360213,1708989044301,-210.84492649,0.00019725,2]
[315360215,1708989044310,-500.0,0.00019725,2]
[315360217,1708989044319,-500.0,0.00019725,2]
[315360219,1708989044328,-500.0,0.00019725,2]
[315360221,1708989044337,-500.0,0.00019725,2]
[315360223,1708989044346,-500.0,0.00019725,2]
[315360225,1708989044355,-500.0,0.00019725,2]
[315360227,1708989044364,-500.0,0.00019725,2]
[315360229,1708989044373,-500.0,0.00019725,2]
[315360230,1708989044382,-500.0,0.00019725,2]
[315360233,1708989044391,-500.0,0.00019725,2]
[315360234,1708989044400,-500.0,0.00019725,2]
[315360237,1708989044410,-500.0,0.00019725,2]
[315360239,1708989044420,-500.0,0.00019725,2]
[315360241,1708989044430,-500.0,0.00019725,2]
[315360243,1708989044439,-500.0,0.00019725,2]
[315360245,1708989044448,-500.0,0.00019725,2]
[315360247,1708989044457,-500.0,0.00019725,2]
[315360248,1708989044466,-500.0,0.00019725,2]
[315360250,1708989044476,-256.44210122,0.00019725,2]
[315360252,1708989044485,-399.333294,0.00019725,2]
[315360255,1708989044494,-500.0,0.00019726,2]
[315360256,1708989044504,-500.0,0.00019726,2]
[315360258,1708989044513,-587.24,0.00019726,2]
[315360260,1708989044523,-500.0,0.00019726,2]
[315360262,1708989044532,-619.10188517,0.00019726,2]
[315360264,1708989044541,-500.0,0.00019726,2]
[315360266,1708989044550,-500.0,0.00019726,2]
[315360268,1708989044559,-500.0,0.00019726,2]
[315360270,1708989044568,-500.0,0.00019726,2]
[315360272,1708989044577,-500.0,0.00019726,2]
[315360274,1708989044587,-1191.18,0.00019726,2]
[315360276,1708989044596,-500.0,0.00019726,2]
[315360278,1708989044605,-500.0,0.00019726,2]
[315360280,1708989044614,-500.0,0.00019726,2]
[315360282,1708989044623,-500.0,0.00019726,2]
[315360284,1708989044633,-500.0,0.00019726,2]
[315360286,1708989044642,-2739.11,0.00019726,2]
[315360289,1708989044653,-500.0,0.00019726,2]
[315360290,1708989044662,-500.0,0.00019726,2]
[315360292,1708989044672,-500.0,0.00019726,2]
[315360294,1708989044681,-500.0,0.00019726,2]
[315360296,1708989044690,-500.0,0.00019726,2]
[315360298,1708989044700,-500.0,0.00019726,2]
[315360300,1708989044709,-500.0,0.00019726,2]
[315360302,1708989044718,-500.0,0.00019726,2]
[315360304,1708989044727,-500.0,0.00019726,2]
[315360306,1708989044736,-171.64068098,0.00019726,2]
[315360308,1708989044746,-1000.0,0.00019726,2]
[315360310,1708989044755,-721.4,0.00019726,2]
[315360312,1708989044764,-557.07689794,0.00019726,2]
[315360315,1708989044774,-1331.54,0.00019726,2]
[315360317,1708989044783,-500.0,0.00019726,2]
[315360319,1708989044793,-500.0,0.00019726,2]
[315360321,1708989044802,-285.47079158,0.00019726,2]
[315360323,1708989044811,-500.0,0.00019726,2]
[315360325,1708989044821,-500.0,0.00019726,2]
[315360326,1708989044830,-500.0,0.00019726,2]
[315360329,1708989044839,-576.01,0.00019726,2]
[315360331,1708989044848,-500.0,0.00019726,2]
[315360333,1708989044857,-500.0,0.00019726,2]
[315360335,1708989044867,-500.0,0.00019726,2]
[315360337,1708989044879,-503.40024603,0.00019726,2]
[315360339,1708989044889,-500.0,0.00019726,2]
[315360341,1708989044898,-478.4437147,0.00019726,2]
[315360343,1708989044907,-500.0,0.00019726,2]
[315360344,1708989044916,-500.0,0.00019726,2]
[315360346,1708989044926,-500.0,0.00019726,2]
[315360348,1708989044935,-500.0,0.00019726,2]
[315360350,1708989044944,-500.0,0.00019726,2]
[315360352,1708989044953,-500.0,0.00019726,2]
[315360354,1708989044963,-500.0,0.00019726,2]
[315360356,1708989044973,-500.0,0.00019726,2]
[315360358,1708989044982,-500.0,0.00019726,2]
[315360360,1708989044992,-500.0,0.00019726,2]
[315360363,1708989045002,-527.5632554,0.00019726,2]
[315360365,1708989045011,-500.0,0.00019726,2]
[315360366,1708989045021,-500.0,0.00019726,2]
[315360369,1708989045030,-500.0,0.00019726,2]
[315360370,1708989045039,-500.0,0.00019726,2]
[315360372,1708989045049,-500.0,0.00019726,2]
[315360374,1708989045058,-502.38633586,0.00019726,2]
[315360376,1708989045068,-500.0,0.00019726,2]
[315360378,1708989045077,-420.38233181,0.00019726,2]
[315360380,1708989045086,-172.04761987,0.00019726,2]
[315360382,1708989045095,-3169.63,0.00019726,2]
[315360384,1708989045104,-206.9662042,0.00019726,2]
[315360386,1708989045113,-1625.24,0.00019726,2]
[315360388,1708989045123,-1421.48,0.00019726,2]
[315360390,1708989045133,-1987.99,0.00019726,2]
[315360392,1708989045142,-500.0,0.00019726,2]
[315360394,1708989045151,-500.0,0.00019726,2]
[315360396,1708989045160,-500.0,0.00019726,2]
[315360398,1708989045170,-1894.86,0.00019726,2]
[315360400,1708989045178,-500.0,0.00019726,2]
[315360402,1708989045188,-500.0,0.00019726,2]
[315360404,1708989045197,-1300.41,0.00019726,2]
[315360406,1708989045206,-2560.44,0.00019726,2]
[315360408,1708989045215,-500.0,0.00019726,2]
[315360410,1708989045225,-502.13232332,0.00019726,2]
[315360412,1708989045234,-287.05748937,0.00019726,2]
[315360414,1708989045243,-500.0,0.00019726,2]
[315360416,1708989045252,-500.0,0.00019726,2]
[315360418,1708989045261,-443.78647685,0.00019726,2]
[315360420,1708989045270,-500.0,0.00019726,2]
[315360422,1708989045279,-500.0,0.00019726,2]
[315360425,1708989045289,-500.0,0.00019726,2]
[315360427,1708989045298,-10695.9,0.00019726,2]
[315360429,1708989045308,-501.11759681,0.00019726,2]
[315360431,1708989045317,-501.25023183,0.00019726,2]
[315360433,1708989045326,-595.11,0.00019726,2]
[315360435,1708989045335,-865.79,0.00019726,2]
[315360436,1708989045344,-500.0,0.00019726,2]
[315360439,1708989045354,-1431.7,0.00019726,2]
[315360441,1708989045363,-225.36072718,0.00019726,2]
[315360443,1708989045372,-3446.49,0.00019726,2]
[315360444,1708989045382,-1849.52,0.00019726,2]
[315360446,1708989045391,-500.0,0.00019726,2]
[315360448,1708989045400,-185.15827025,0.00019726,2]
[315360450,1708989045410,-500.0,0.00019726,2]
[315360452,1708989045420,-17115.04,0.00019726,2]
[315360454,1708989045430,-500.0,0.00019726,2]
[315360456,1708989045438,-500.0,0.00019726,2]
[315360458,1708989045448,-907.39,0.00019726,2]
[315360460,1708989045457,-500.0,0.00019726,2]
[315360462,1708989045466,-500.0,0.00019726,2]
[315360464,1708989045475,-500.0,0.00019726,2]
[315360466,1708989045484,-290.39303171,0.00019726,2]
[315360468,1708989045493,-500.0,0.00019726,2]
[315360470,1708989045503,-2018.18,0.00019726,2]
[315360472,1708989045512,-500.0,0.00019726,2]
[315360474,1708989045521,-1573.46,0.00019726,2]
[315360476,1708989045530,-17851.83,0.00019726,2]
[315360478,1708989045539,-949.56,0.00019726,2]
[315360480,1708989045548,-500.0,0.00019726,2]
[315360482,1708989045557,-500.0,0.00019726,2]
[315360484,1708989045566,-500.0,0.00019726,2]
[315360486,1708989045575,-500.0,0.00019726,2]
[315360488,1708989045584,-500.0,0.00019726,2]
[315360490,1708989045593,-7320.56,0.00019726,2]
[315360492,1708989045602,-500.0,0.00019726,2]
[315360494,1708989045611,-500.0,0.00019726,2]
[315360496,1708989045620,-1206.9,0.00019726,2]
[315360498,1708989045629,-3358.79,0.00019726,2]
[315360500,1708989045638,-1001.44015609,0.00019726,2]
[315360502,1708989045647,-510.36105547,0.00019726,2]
[315360504,1708989045656,-341.57797988,0.00019726,2]
[315360506,1708989045690,-500.0,0.00019726,2]
[315360508,1708989045698,-500.0,0.00019726,2]
[315360511,1708989045708,-659.55,0.00019726,2]
[315360514,1708989045717,-500.0,0.00019726,2]
[315360516,1708989045726,-667.3,0.00019726,2]
[315360518,1708989045735,-500.0,0.00019726,2]
[315360520,1708989045744,-2609.44,0.00019726,2]
[315360522,1708989045753,-500.0,0.00019726,2]
[315360525,1708989045762,-1701.35,0.00019726,2]
[315360527,1708989045772,-500.0,0.00019726,2]
[315360529,1708989045781,-500.0,0.00019726,2]
[315360531,1708989045790,-500.0,0.00019726,2]
[315360533,1708989045799,-501.47582872,0.00019726,2]
[315360535,1708989045808,-500.0,0.00019726,2]
[315360537,1708989045817,-2076.84,0.00019726,2]
[315360539,1708989045826,-500.0,0.00019726,2]
[315360541,1708989045835,-500.0,0.00019726,2]
[315360543,1708989045844,-3588.08,0.00019726,2]
[315360545,1708989045853,-2067.98,0.00019726,2]
[315360547,1708989045862,-2463.51589487,0.00019768,2]
[315360549,1708989045872,-359.94840108,0.00019815,2]
[315360551,1708989045884,-823.9,0.00019849,2]
[315360553,1708989045893,-8230.24916882,0.0001989,2]
[315360555,1708989045902,-2463.51589487,0.00019909,2]
[315360557,1708989045912,-399.333294,0.00019998,2]
[315360567,1708989046002,-243.58118859,0.00019998,2]
[315360569,1708989046013,-104303.12329218,0.00019999,2]
[315360571,1708989046022,-823.9,0.00019999,2]
[315360573,1708989046030,-823.9,0.00019999,2]
[315360575,1708989046040,-823.9,0.00019999,2]
[315360577,1708989046049,-823.9,0.00019999,2]
[315360579,1708989046060,-823.9,0.00019999,2]
[315360581,1708989046070,-823.9,0.00019999,2]
[315360583,1708989046079,-824.12976624,0.00019999,2]
[315360585,1708989046089,-399.333294,0.00019999,2]
[315360587,1708989046098,-243.58118859,0.00019999,2]
[315360589,1708989046108,-500.0,0.00019999,2]
[315360591,1708989046117,-500.0,0.00019999,2]
[315360593,1708989046126,-500.0,0.00019999,2]
[315360595,1708989046135,-500.0,0.00019999,2]
[315360597,1708989046144,-500.0,0.00019999,2]
[315360599,1708989046153,-500.0,0.00019999,2]
[315360602,1708989046165,-500.0,0.00019999,2]
[315360604,1708989046174,-500.0,0.00019999,2]
[315360606,1708989046183,-500.0,0.00019999,2]
[315360607,1708989046192,-500.0,0.00019999,2]
[315360610,1708989046202,-500.0,0.00019999,2]
[315360611,1708989046211,-256.44210122,0.00019999,2]
[315360613,1708989046220,-301.74903391,0.0002,2]
[315360615,1708989046230,-175.5,0.0002,2]
[315360618,1708989046239,-500.0,0.0002,2]
[315360619,1708989046248,-587.24,0.0002,2]
[315360622,1708989046258,-500.0,0.0002,2]
[315360624,1708989046267,-570.73700149,0.0002,2]
[315360626,1708989046276,-500.0,0.0002,2]
[315360628,1708989046285,-502.00608495,0.0002,2]
[315360630,1708989046294,-500.0,0.0002,2]
[315360632,1708989046304,-1191.18,0.0002,2]
[315360634,1708989046313,-500.0,0.0002,2]